fUST/lending_fUST_20240612
["ID","MTS","AMOUNT","RATE_DAILY","PERIOD"]
[329185764,1718161032230,-1814.9574372,0.0001815,2]
[329185765,1718161076539,526.7258499,9.999e-05,2]
[329185766,1718161084636,-19874.74857724,0.0001815,2]
[329185767,1718161084678,-2525.25142276,0.00018152,2]
[329185768,1718161281604,208.4598643,9.999e-05,2]
[329185771,1718161598277,-300.0,0.00017617,2]
[329185772,1718161598304,-16005.2079738,0.00017618,2]
[329185773,1718161598330,-1050.2920262,0.00018052,2]
[329185818,1718161832866,-4023.64947817,0.00018052,2]
[329185819,1718161832975,-1721.14255212,0.00018052,2]
[329185820,1718161832986,-190.26891304,0.00018214,2]
[329185821,1718161832996,-620.01366797,0.00018315,2]
[329185822,1718161833006,-153.0,0.00018541,2]
[329185823,1718161833017,-183.46059197,0.0001863,2]
[329185824,1718161833030,-66.53940803,0.0001863,2]
[329185825,1718161833040,-292.5249381,0.0001863,2]
[329185826,1718161833051,-585.0498762,0.00018678,2]
[329185827,1718161833061,-292.5249381,0.00018678,2]
[329185828,1718161833238,-659.63415548,0.00018696,2]
[329185829,1718161833251,-642.86584452,0.00018696,2]
[329185830,1718161833261,-292.5249381,0.000187,2]
[329185831,1718161833271,-292.5249381,0.000187,2]
[329185832,1718161833282,-153.0,0.000187,2]
[329185833,1718161833293,-153.0,0.000187,2]
[329185834,1718161833303,-153.0,0.000187,2]
[329185835,1718161833313,-328.53823075,0.00018715,2]
[329185836,1718161833324,-155.14557543,0.00018715,2]
[329185837,1718161833335,-2643.3061463,0.00018715,2]
[329185838,1718161833347,-876.68948426,0.00018715,2]
[329185839,1718161833357,-182.0047069,0.00018716,2]
[329185840,1718161833367,-181.60627675,0.00018716,2]
[329185841,1718161833377,-872.6178828,0.00018717,2]
[329185842,1718161833418,-31878.82098511,0.00018717,2]
[329185843,1718161833428,-7007.73986621,0.000189,2]
[329185844,1718161833440,-4240.25416209,0.00018904,2]
[329185845,1718161833451,-1683.99847362,0.00018915,2]
[329185846,1718161833461,-1683.9984736,0.00018956,2]
[329185847,1718161833472,-2000.0,0.00018978,2]
[329185848,1718161833482,-592.41,0.0001899,3]
[329185849,1718161833493,-1102.22957854,0.00018994,2]
[329185888,1718161839062,-3986.0249743,0.00018994,2]
[329185889,1718161839076,-5913.45478442,0.00018994,2]
[329186000,1718161846552,-2163.43126643,0.00018011,2]
[329186001,1718161846565,-9625.87796091,0.00018011,2]
[329186002,1718161846578,-13110.69077266,0.00018011,2]
[329186003,1718161846589,-3638.54921304,0.00018994,2]
[329186004,1718161846599,-1683.9984736,0.00018997,2]
[329186005,1718161846611,-7270.73643792,0.00019,2]
[329186006,1718161846621,-410.6873722,0.00019,2]
[329186007,1718161846632,-163.14541634,0.00019,2]
[329186008,1718161846642,-456.05049641,0.00019014,2]
[329186009,1718161846653,-275.97223739,0.00019014,2]
[329186010,1718161846662,-392.04315617,0.00019014,2]
[329186011,1718161846673,-13245.57062522,0.00019014,2]
[329186012,1718161846683,-302.09026217,0.00019014,2]
[329186013,1718161846694,-1445.96620279,0.00019014,2]
[329186014,1718161846705,-774.49408999,0.00019014,2]
[329186015,1718161846715,-216.69832233,0.00019014,2]
[329186016,1718161846740,-156.17654963,0.00019014,2]
[329186017,1718161846751,-195.19218723,0.00019014,2]
[329186018,1718161846762,-7407.28160465,0.00019014,2]
[329186021,1718161846795,-149.3707195,0.00019014,2]
[329186023,1718161846806,-511.07391586,0.00019015,2]
[329186032,1718161846923,-3820.75075003,0.00019015,2]
[329186033,1718161846934,-521.18871032,0.00019015,2]
[329186034,1718161846944,-17403.13670597,0.00019016,2]
[329186035,1718161847143,-9544.92048059,0.00019016,2]
[329186036,1718161847156,-878.92675256,0.00019016,2]
[329186037,1718161847170,-961.81211323,0.00019016,2]
[329186043,1718162214203,168.11,0.00022,120]
[329186212,1718163091228,1343.59150643,9.999e-05,2]
[329186213,1718163106166,187.91816034,9.999e-05,2]
[329186214,1718163151707,26877.40397232,0.00017758,13]
[329186215,1718163269590,13438.70198616,0.00018,13]
[329186216,1718163421480,1501.89648863,9.999e-05,2]
[329186218,1718163460363,56804.55225831,9.999e-05,2]
[329186226,1718163571480,22799.85278632,0.00019,15]
[329186230,1718163647290,1984.3604423,9.999e-05,2]
[329186231,1718163691511,11399.92639316,0.00018999,15]
[329186232,1718163745234,4240.25416209,0.00010872,2]
[329186233,1718163804098,357.0,0.000266,120]
[329186234,1718163811899,5699.96319658,0.00018987,15]
[329186235,1718163867779,3658.77296857,0.00011196,2]
[329186236,1718163868105,3658.77296857,0.00011465,2]
[329186237,1718163931872,2849.98159829,0.00018973,15]
[329186238,1718163987335,3658.77296857,0.00011753,2]
[329186239,1718164052170,1424.99079914,0.00018873,15]
[329186241,1718164111142,3658.77296858,0.00011795,2]
[329186246,1718164171476,712.49539958,0.00018653,15]
[329186247,1718164230935,3658.77296858,0.00012291,2]
[329186285,1718164233218,-219.88767,0.00016563,2]
[329186288,1718164233230,-2683.16682461,0.00017213,2]
[329186290,1718164233241,-300.0,0.00017214,2]
[329186292,1718164233253,-24900.0,0.00017215,2]
[329186294,1718164233264,-1166.3,0.00017401,2]
[329186296,1718164233276,-1166.3,0.00017612,2]
[329186298,1718164233286,-190.26891304,0.00017655,2]
[329186300,1718164233296,-500.0,0.00017751,2]
[329186302,1718164233307,-500.0,0.00017751,2]
[329186304,1718164233317,-500.0,0.00017751,2]
[329186306,1718164233327,-500.0,0.00017751,2]
[329186308,1718164233337,-500.0,0.00017751,2]
[329186309,1718164233348,-11101.9638547,0.00017752,2]
[329186311,1718164233358,-306.0,0.000178,2]
[329186313,1718164233369,-1166.3,0.00017823,2]
[329186314,1718164233378,-300.64273011,0.00017878,2]
[329186316,1718164233389,-292.5249381,0.00017878,2]
[329186317,1718164233400,-153.1163708,0.00017878,2]
[329186318,1718164233410,-153.6131858,0.00017878,2]
[329186319,1718164233421,-153.0,0.00017878,2]
[329186320,1718164233431,-17790.55058452,0.00017997,2]
[329186321,1718164233441,-472.09947383,0.00017999,2]
[329186322,1718164233452,-500.0,0.00017999,2]
[329186323,1718164233463,-502.681243,0.00017999,2]
[329186324,1718164233473,-500.0,0.00017999,2]
[329186325,1718164233484,-530.77251499,0.00017999,2]
[329186326,1718164233495,-501.3201634,0.00017999,2]
[329186327,1718164233505,-500.0,0.00017999,2]
[329186328,1718164233516,-175.3000794,0.00017999,2]
[329186329,1718164233531,-500.0,0.00017999,2]
[329186330,1718164233541,-3045.17,0.00017999,2]
[329186331,1718164233552,-500.0,0.00017999,2]
[329186332,1718164233568,-500.0,0.00017999,2]
[329186333,1718164233578,-516.60972378,0.00017999,2]
[329186334,1718164233588,-500.0,0.00017999,2]
[329186335,1718164233599,-500.0,0.00017999,2]
[329186336,1718164233608,-171.70472741,0.00017999,2]
[329186337,1718164233618,-502.16644432,0.00017999,2]
[329186338,1718164233629,-500.0,0.00017999,2]
[329186339,1718164233640,-462.28250808,0.00017999,2]
[329186340,1718164233651,-500.0,0.00017999,2]
[329186341,1718164233662,-502.50937641,0.00017999,2]
[329186342,1718164233681,-500.0,0.00017999,2]
[329186343,1718164233902,-500.0,0.00017999,2]
[329186344,1718164233913,-500.0,0.00017999,2]
[329186345,1718164233923,-500.0,0.00017999,2]
[329186346,1718164233933,-507.16983117,0.00017999,2]
[329186347,1718164233943,-500.0,0.00017999,2]
[329186348,1718164233953,-502.69348134,0.00017999,2]
[329186349,1718164233963,-500.0,0.00017999,2]
[329186350,1718164233974,-500.0,0.00017999,2]
[329186351,1718164233983,-225.78618732,0.00017999,2]
[329186352,1718164233994,-500.0,0.00017999,2]
[329186353,1718164234004,-500.0,0.00017999,2]
[329186354,1718164234014,-509.72580015,0.00017999,2]
[329186355,1718164234028,-500.0,0.00017999,2]
[329186356,1718164234038,-500.0,0.00017999,2]
[329186357,1718164234047,-635.74,0.00017999,2]
[329186358,1718164234058,-556.97713175,0.00017999,2]
[329186359,1718164234068,-500.0,0.00017999,2]
[329186360,1718164234077,-501.04601295,0.00017999,2]
[329186361,1718164234087,-500.0,0.00017999,2]
[329186362,1718164234097,-506.14114864,0.00017999,2]
[329186363,1718164234107,-500.0,0.00017999,2]
[329186364,1718164234118,-500.0,0.00017999,2]
[329186365,1718164234128,-500.0,0.00017999,2]
[329186366,1718164234138,-500.0,0.00017999,2]
[329186367,1718164234148,-500.0,0.00017999,2]
[329186368,1718164234158,-500.60215893,0.00017999,2]
[329186369,1718164234168,-500.64150737,0.00017999,2]
[329186370,1718164234178,-500.0,0.00017999,2]
[329186371,1718164234189,-500.0,0.00017999,2]
[329186372,1718164234199,-519.51108577,0.00017999,2]
[329186373,1718164234209,-500.0,0.00017999,2]
[329186374,1718164234219,-500.0,0.00017999,2]
[329186375,1718164234229,-504.95367316,0.00017999,2]
[329186376,1718164234240,-500.0,0.00017999,2]
[329186377,1718164234250,-1243.13,0.00017999,2]
[329186378,1718164234260,-500.0,0.00017999,2]
[329186379,1718164234272,-500.0,0.00017999,2]
[329186380,1718164234282,-264.21624104,0.00017999,2]
[329186381,1718164234293,-500.0,0.00017999,2]
[329186382,1718164234303,-500.0,0.00017999,2]
[329186383,1718164234314,-5834.7,0.00017999,2]
[329186384,1718164234325,-506.84064263,0.00017999,2]
[329186385,1718164234335,-500.0,0.00017999,2]
[329186386,1718164234345,-509.96720287,0.00017999,2]
[329186387,1718164234355,-500.0,0.00017999,2]
[329186388,1718164234365,-500.0,0.00017999,2]
[329186389,1718164234375,-500.0,0.00017999,2]
[329186390,1718164234386,-500.0,0.00017999,2]
[329186391,1718164234396,-504.8708622,0.00017999,2]
[329186392,1718164234406,-500.0,0.00017999,2]
[329186393,1718164234417,-500.0,0.00017999,2]
[329186394,1718164234427,-500.0,0.00017999,2]
[329186395,1718164234438,-592.07,0.00017999,2]
[329186396,1718164234448,-500.60297449,0.00017999,2]
[329186397,1718164234459,-500.0,0.00017999,2]
[329186398,1718164234470,-500.0,0.00017999,2]
[329186399,1718164234480,-500.0,0.00017999,2]
[329186400,1718164234490,-500.0,0.00017999,2]
[329186401,1718164234501,-500.0,0.00017999,2]
[329186402,1718164234511,-703.66,0.00017999,2]
[329186403,1718164234524,-500.0,0.00017999,2]
[329186404,1718164234534,-500.0,0.00017999,2]
[329186405,1718164234544,-500.0,0.00017999,2]
[329186406,1718164234555,-502.98836485,0.00017999,2]
[329186407,1718164234569,-8552.97728181,0.00018,2]
[329186420,1718164238833,-500.0,0.00017999,2]
[329186421,1718164238847,-272.57700598,0.00017999,2]
[329186422,1718164238858,-5061.92211968,0.00018,2]
[329186423,1718164238871,-2318.90059851,0.00018,2]
[329186424,1718164238882,-578.93048818,0.00018,2]
[329186427,1718164242152,-359.50100004,0.00018,2]
[329186428,1718164242166,-1827.01102384,0.00018,2]
[329186429,1718164242176,-500.0,0.00018025,2]
[329186430,1718164242186,-500.0,0.00018025,2]
[329186431,1718164242198,-500.0,0.00018025,2]
[329186432,1718164242209,-159.55742769,0.00018025,2]
[329186442,1718164245911,-501.45138769,0.00017999,2]
[329186443,1718164245923,-501.91189229,0.00017999,2]
[329186444,1718164245934,-500.0,0.00017999,2]
[329186445,1718164245945,-500.0,0.00017999,2]
[329186446,1718164245956,-500.0,0.00017999,2]
[329186447,1718164245967,-500.0,0.00017999,2]
[329186448,1718164245978,-340.44257231,0.00018025,2]
[329186449,1718164245989,-500.0,0.00018025,2]
[329186450,1718164246001,-1111.33626528,0.00018035,2]
[329186457,1718164247959,-500.0,0.00017216,2]
[329186458,1718164294074,356.24769979,0.00018653,15]
[329186459,1718164411532,7228.29588615,0.00018273,15]
[329186460,1718164411567,5294.85455002,0.00018273,15]
[329186461,1718164531568,6261.57521808,0.00018272,15]
[329186462,1718164651680,3130.78760904,0.00017999,15]
[329186466,1718164711156,22105.76482568,0.00018025,13]
[329186467,1718164771718,1565.39380452,0.00017999,15]
[329186468,1718164772435,11052.88241284,0.00017999,13]
[329186470,1718164829183,5526.44120642,0.00017999,13]
[329186475,1718164891383,927.77008751,9.999e-05,2]
[329186476,1718164892194,2763.22060321,0.00017924,13]
[329186477,1718164895067,782.69690226,0.00017751,15]
[329186481,1718164916912,187.91816034,9.999e-05,2]
[329186483,1718164949264,1381.61030161,0.00017751,13]
[329186486,1718165010917,690.8051508,0.00017751,13]
[329186487,1718165012054,391.34845113,0.0001765,15]
[329186496,1718165070787,345.4025754,0.0001765,13]
[329186498,1718165129282,172.7012877,0.00017649,13]
[329186499,1718165131639,195.67422556,0.00017487,15]
[329186500,1718165189824,172.70128769,0.00017213,13]
[329186513,1718165397342,24900.0,0.00013638,2]
[329186587,1718165435445,-302.0,0.00014381,2]
[329186683,1718165442082,-2381.16682461,0.00014381,2]
[329186685,1718165442091,-1551.73493844,0.00014382,2]
[329186687,1718165442101,-300.0,0.00014481,2]
[329186689,1718165442111,-173.8324487,0.00014481,2]
[329186691,1718165442123,-351.60670626,0.00014481,2]
[329186920,1718165444751,-41593.60348587,0.00014481,2]
[329186922,1718165444761,-11101.9638547,0.00014482,2]
[329186924,1718165444772,-426.89175156,0.000145,2]
[329186926,1718165444782,-213.103015,0.0001457,2]
[329186927,1718165444795,-1000.0,0.00015,2]
[329186929,1718165444807,-2816.98595741,0.00015,2]
[329186931,1718165444818,-1000.0,0.000155,2]
[329186933,1718165444828,-367.0,0.00015929,2]
[329186935,1718165444840,-1000.0,0.00016,2]
[329186937,1718165444852,-3076.15955742,0.0001611,2]
[329186939,1718165444864,-2821.18707186,0.00016112,2]
[329186941,1718165444875,-1551.73493843,0.0001617,2]
[329186942,1718165444886,-237.48193007,0.00016208,2]
[329186944,1718165444897,-1690.48986013,0.00016208,2]
[329186946,1718165444908,-15190.16022127,0.00016209,2]
[329186948,1718165444919,-155.20500085,0.0001621,2]
[329186950,1718165444930,-309.95350775,0.0001621,2]
[329186952,1718165444941,-155.76320507,0.0001621,2]
[329186954,1718165444952,-216.23913996,0.0001621,2]
[329186956,1718165444963,-255.78409793,0.0001621,2]
[329186957,1718165444975,-331.14541743,0.0001621,2]
[329186959,1718165444991,-241.69907593,0.0001621,2]
[329186961,1718165445002,-234.36975919,0.0001621,2]
[329186963,1718165445013,-2639.48407245,0.0001621,2]
[329186965,1718165445024,-41584.18105877,0.0001621,2]
[329186967,1718165445036,-187.82379493,0.0001621,2]
[329186969,1718165445047,-282.19775427,0.00016211,2]
[329186971,1718165445059,-927.1117103,0.00016211,2]
[329186973,1718165445069,-523.44982235,0.00016211,2]
[329186974,1718165445080,-155.04772179,0.00016212,2]
[329186976,1718165445091,-272.81295919,0.00016212,2]
[329186978,1718165445102,-155.07072833,0.00016212,2]
[329186980,1718165445114,-156.11176586,0.00016212,2]
[329186982,1718165445124,-39114.71989726,0.00016212,2]
[329186984,1718165445135,-1810.670137,0.00016212,2]
[329186986,1718165445145,-1810.670137,0.00016212,2]
[329186988,1718165445157,-174.394961,0.00016212,2]
[329186989,1718165445193,-1201.083234,0.00016212,2]
[329186991,1718165445205,-1201.083234,0.00016212,2]
[329186993,1718165445215,-174.394961,0.00016212,2]
[329186995,1718165445226,-151.0,0.00016212,2]
[329186997,1718165445237,-151.0,0.00016212,2]
[329186999,1718165445247,-331.038908,0.00016212,2]
[329187001,1718165445258,-331.038908,0.00016212,2]
[329187003,1718165445268,-151.0,0.00016212,2]
[329187004,1718165445278,-266.423676,0.00016212,2]
[329187006,1718165445290,-317.18350335,0.00016213,2]
[329187008,1718165445301,-1389.105788,0.00016214,2]
[329187010,1718165445312,-151.0,0.00016214,2]
[329187012,1718165445324,-1389.105788,0.00016214,2]
[329187014,1718165445334,-293.013129,0.00016214,2]
[329187016,1718165445345,-293.013129,0.00016214,2]
[329187018,1718165445356,-233.959898,0.00016214,2]
[329187019,1718165445367,-233.959898,0.00016214,2]
[329187021,1718165445377,-151.470938,0.00016214,2]
[329187023,1718165445389,-151.296538,0.00016214,2]
[329187025,1718165445400,-151.0,0.00016214,2]
[329187027,1718165445411,-287.152851,0.00016214,2]
[329187029,1718165445421,-287.152851,0.00016214,2]
[329187031,1718165445431,-151.0,0.00016214,2]
[329187033,1718165445442,-158.691533,0.00016214,2]
[329187035,1718165445453,-158.691533,0.00016214,2]
[329187036,1718165445463,-151.0,0.00016214,2]
[329187038,1718165445473,-1810.670137,0.00016214,2]
[329187040,1718165445483,-1810.670137,0.00016214,2]
[329187042,1718165445494,-174.394961,0.00016214,2]
[329187044,1718165445504,-1201.083234,0.00016214,2]
[329187046,1718165445514,-1000.0,0.00016214,2]
[329187048,1718165445525,-1000.0,0.00016214,2]
[329187049,1718165445535,-1000.0,0.00016214,2]
[329187051,1718165445546,-1000.0,0.00016214,2]
[329187053,1718165445556,-1000.0,0.00016214,2]
[329187055,1718165445567,-1000.0,0.00016214,2]
[329187057,1718165445577,-1000.0,0.00016214,2]
[329187059,1718165445587,-1000.0,0.00016214,2]
[329187061,1718165445598,-1000.0,0.00016214,2]
[329187063,1718165445609,-1201.083234,0.00016214,2]
[329187064,1718165445619,-1000.0,0.00016214,2]
[329187066,1718165445630,-2246.162591,0.00016214,2]
[329187068,1718165445641,-1000.0,0.00016214,2]
[329187070,1718165445650,-1000.0,0.00016214,2]
[329187072,1718165445661,-174.394961,0.00016214,2]
[329187074,1718165445671,-1000.0,0.00016214,2]
[329187075,1718165445682,-1000.0,0.00016214,2]
[329187077,1718165445692,-1000.0,0.00016214,2]
[329187079,1718165445702,-1000.0,0.00016214,2]
[329187081,1718165445713,-1000.0,0.00016214,2]
[329187083,1718165445723,-1000.0,0.00016214,2]
[329187085,1718165445734,-2246.162591,0.00016214,2]
[329187087,1718165445744,-1000.0,0.00016214,2]
[329187089,1718165445755,-1000.0,0.00016214,2]
[329187090,1718165445765,-1000.0,0.00016214,2]
[329187092,1718165445776,-1000.0,0.00016214,2]
[329187094,1718165445787,-1000.0,0.00016214,2]
[329187096,1718165445799,-1000.0,0.00016214,2]
[329187098,1718165445810,-1000.0,0.00016214,2]
[329187100,1718165445821,-151.0,0.00016214,2]
[329187102,1718165445831,-1000.0,0.00016214,2]
[329187104,1718165445842,-1000.0,0.00016214,2]
[329187105,1718165445853,-1000.0,0.00016214,2]
[329187107,1718165445863,-1000.0,0.00016214,2]
[329187109,1718165445874,-1000.0,0.00016214,2]
[329187111,1718165445887,-177.957714,0.00016214,2]
[329187113,1718165445897,-1000.0,0.00016214,2]
[329187115,1718165445908,-1000.0,0.00016214,2]
[329187117,1718165445919,-1000.0,0.00016214,2]
[329187119,1718165445929,-1000.0,0.00016214,2]
[329187120,1718165445940,-1000.0,0.00016214,2]
[329187122,1718165445951,-1000.0,0.00016214,2]
[329187124,1718165445961,-1000.0,0.00016214,2]
[329187126,1718165445972,-1000.0,0.00016214,2]
[329187128,1718165445988,-1000.0,0.00016214,2]
[329187130,1718165445999,-1000.0,0.00016214,2]
[329187132,1718165446009,-1000.0,0.00016214,2]
[329187134,1718165446019,-1000.0,0.00016214,2]
[329187136,1718165446031,-1000.0,0.00016214,2]
[329187138,1718165446041,-1000.0,0.00016214,2]
[329187140,1718165446052,-1000.0,0.00016214,2]
[329187141,1718165446063,-1000.0,0.00016214,2]
[329187143,1718165446073,-1000.0,0.00016214,2]
[329187145,1718165446083,-1000.0,0.00016214,2]
[329187147,1718165446096,-1000.0,0.00016214,2]
[329187149,1718165446105,-1000.0,0.00016214,2]
[329187151,1718165446117,-1000.0,0.00016214,2]
[329187153,1718165446128,-1000.0,0.00016214,2]
[329187155,1718165446140,-1000.0,0.00016214,2]
[329187157,1718165446150,-1000.0,0.00016214,2]
[329187159,1718165446159,-1000.0,0.00016214,2]
[329187161,1718165446187,-1000.0,0.00016214,2]
[329187163,1718165446198,-1000.0,0.00016214,2]
[329187165,1718165446208,-1000.0,0.00016214,2]
[329187167,1718165446218,-1000.0,0.00016214,2]
[329187169,1718165446228,-1000.0,0.00016214,2]
[329187171,1718165446238,-1000.0,0.00016214,2]
[329187173,1718165446248,-1000.0,0.00016214,2]
[329187175,1718165446259,-1000.0,0.00016214,2]
[329187177,1718165446268,-1000.0,0.00016214,2]
[329187179,1718165446279,-1000.0,0.00016214,2]
[329187181,1718165446289,-1000.0,0.00016214,2]
[329187182,1718165446298,-1000.0,0.00016214,2]
[329187184,1718165446309,-1000.0,0.00016214,2]
[329187186,1718165446319,-344.029202,0.00016214,2]
[329187188,1718165446330,-331.038908,0.00016214,2]
[329187190,1718165446341,-331.038908,0.00016214,2]
[329187192,1718165446351,-151.0,0.00016214,2]
[329187194,1718165446361,-151.0,0.00016214,2]
[329187197,1718165446371,-151.648736,0.00016214,2]
[329187200,1718165446382,-151.0,0.00016214,2]
[329187203,1718165446395,-151.0,0.00016214,2]
[329187206,1718165446406,-151.0,0.00016214,2]
[329187208,1718165446417,-176.112816,0.00016214,2]
[329187211,1718165446430,-634.783256,0.00016214,2]
[329187214,1718165446440,-634.783256,0.00016214,2]
[329187217,1718165446450,-634.783256,0.00016214,2]
[329187220,1718165446460,-634.783256,0.00016214,2]
[329187223,1718165446470,-634.783256,0.00016214,2]
[329187225,1718165446482,-266.423676,0.00016214,2]
[329187228,1718165446492,-634.783256,0.00016214,2]
[329187231,1718165446502,-266.423676,0.00016214,2]
[329187234,1718165446513,-634.783256,0.00016214,2]
[329187237,1718165446523,-266.423676,0.00016214,2]
[329187240,1718165446535,-634.783256,0.00016214,2]
[329187242,1718165446545,-266.423676,0.00016214,2]
[329187244,1718165446555,-634.783256,0.00016214,2]
[329187246,1718165446566,-500.0,0.00016438,2]
[329187247,1718165446576,-500.0,0.00016438,2]
[329187249,1718165446586,-500.0,0.00016438,2]
[329187252,1718165446596,-500.0,0.00016438,2]
[329187255,1718165446606,-500.0,0.00016438,2]
[329187257,1718165446616,-1810.670137,0.00016438,2]
[329187260,1718165446626,-500.0,0.00016438,2]
[329187264,1718165446638,-174.394961,0.00016438,2]
[329187266,1718165446648,-1810.670137,0.00016438,2]
[329187269,1718165446658,-1201.083234,0.00016438,2]
[329187271,1718165446668,-1201.083234,0.00016438,2]
[329187272,1718165446678,-174.394961,0.00016438,2]
[329187274,1718165446688,-151.0,0.00016438,2]
[329187276,1718165446698,-500.0,0.00016438,2]
[329187278,1718165446709,-609.25,0.00016438,2]
[329187280,1718165446719,-331.038908,0.00016438,2]
[329187282,1718165446729,-5591.59,0.00016438,2]
[329187284,1718165446739,-331.038908,0.00016438,2]
[329187286,1718165446750,-5591.59,0.00016438,2]
[329187288,1718165446760,-5591.59,0.00016438,2]
[329187290,1718165446771,-500.0,0.00016438,2]
[329187292,1718165446781,-500.0,0.00016438,2]
[329187294,1718165446791,-501.7894053,0.00016438,2]
[329187296,1718165446802,-1191.34,0.00016438,2]
[329187297,1718165446812,-567.4,0.00016438,2]
[329187299,1718165446822,-500.0,0.00016438,2]
[329187301,1718165446833,-2918.28,0.00016438,2]
[329187303,1718165446844,-500.0,0.00016438,2]
[329187305,1718165446854,-500.0,0.00016438,2]
[329187307,1718165446864,-500.0,0.00016438,2]
[329187309,1718165446874,-501.9904281,0.00016438,2]
[329187311,1718165446885,-634.783256,0.00016438,2]
[329187313,1718165446896,-634.783256,0.00016438,2]
[329187315,1718165446906,-634.783256,0.00016438,2]
[329187317,1718165446917,-3372.33602,0.00016438,2]
[329187319,1718165446928,-3372.33602,0.00016438,2]
[329187321,1718165446938,-470.0397133,0.0001648,2]
[329187323,1718165446948,-3076.15955739,0.00016495,2]
[329187324,1718165446958,-1000.0,0.000165,2]
[329187326,1718165446969,-500.0,0.00016712,2]
[329187328,1718165446982,-500.0,0.00016712,2]
[329187330,1718165446992,-503.57559444,0.00016712,2]
[329187332,1718165447003,-500.0,0.00016712,2]
[329187334,1718165447013,-500.0,0.00016712,2]
[329187336,1718165447027,-504.05378892,0.00016712,2]
[329187338,1718165447038,-500.0,0.00016712,2]
[329187340,1718165447049,-609.25,0.00016712,2]
[329187353,1718165447197,-228.45343349,0.00016712,2]
[329187355,1718165447208,-1191.34,0.00016712,2]
[329187357,1718165447219,-567.4,0.00016712,2]
[329187359,1718165447230,-500.0,0.00016712,2]
[329187360,1718165447240,-2918.28,0.00016712,2]
[329187362,1718165447250,-500.0,0.00016712,2]
[329187364,1718165447261,-500.0,0.00016712,2]
[329187366,1718165447272,-500.0,0.00016712,2]
[329187368,1718165447282,-634.783256,0.00016712,2]
[329187370,1718165447293,-3076.15955739,0.00016881,2]
[329187372,1718165447303,-509.26123511,0.00016986,2]
[329187374,1718165447319,-500.0,0.00016986,2]
[329187376,1718165447329,-500.0,0.00016986,2]
[329187378,1718165447339,-500.0,0.00016986,2]
[329187379,1718165447350,-500.0,0.00016986,2]
[329187380,1718165447361,-609.25,0.00016986,2]
[329187381,1718165447371,-1191.34,0.00016986,2]
[329187382,1718165447382,-567.4,0.00016986,2]
[329187383,1718165447392,-500.0,0.00016986,2]
[329187384,1718165447403,-2918.28,0.00016986,2]
[329187385,1718165447413,-500.0,0.00016986,2]
[329187386,1718165447423,-500.0,0.00016986,2]
[329187387,1718165447433,-500.0,0.00016986,2]
[329187388,1718165447443,-1000.0,0.00017,2]
[329187389,1718165447454,-151.0,0.00017,2]
[329187390,1718165447464,-287.152851,0.00017,2]
[329187391,1718165447474,-287.152851,0.00017,2]
[329187392,1718165447483,-151.0,0.00017,2]
[329187393,1718165447493,-158.691533,0.00017,2]
[329187394,1718165447503,-158.691533,0.00017,2]
[329187395,1718165447513,-151.0,0.00017,2]
[329187396,1718165447523,-2246.162591,0.00017,2]
[329187397,1718165447533,-2246.162591,0.00017,2]
[329187398,1718165447543,-634.783256,0.00017,2]
[329187399,1718165447553,-500.00445367,0.00017213,2]
[329187400,1718165447564,-238.26181432,0.00017213,2]
[329187401,1718165447574,-563.93340625,0.00017213,2]
[329187402,1718165447584,-500.0,0.00017213,2]
[329187403,1718165447594,-158.862796,0.00017213,2]
[329187404,1718165447605,-500.0,0.00017213,2]
[329187405,1718165447618,-157.65681588,0.00017213,2]
[329187406,1718165447630,-500.0,0.00017213,2]
[329187407,1718165447641,-500.0,0.00017213,2]